Cogmind - Beta 12 @@@ ROGUE MODE // 2023.04.16 @ 16:22:38 Player: maxwell Result: Self-destructed Performance ------------- Evolutions (8) 4000 Regions Visited (27) 5400 Robots Destroyed (244) 1220 Value Destroyed (12068) 12068 Prototype IDs (38) 760 Alien Tech Used (0) 0 Bonus (13505) 13505 TOTAL SCORE: 36953 Bonus ------- Triggered High Security 500 High Alert Combat Kills 2365 Follower Combat Kills 4803 Entered Garrisons 1800 Used RIF Installer 4500 Entered DSFs 500 Aligned with FarCom 300 Friendly Fire -1263 Cogmind --------- Core Integrity 1240/1450 Matter 123/300 Energy 75/100 System Corruption 1% Temperature Cool (0) Movement Core (200) Ox3 Location -2/Research Parts ------- > --- POWER (2) -------- (None) > --- PROPULSION (6) --- (None) > --- UTILITY (11) ----- Improved Force Field > --- WEAPON (4) ------- (None) > --- INVENTORY (5) ---- Cargo Storage Unit Relay Coupler [Behemoth] Enhanced Nova Cannon Advanced Datajack Peak State ------------ > --- POWER ------------ Light Particle Reactor Light Quantum Reactor > --- PROPULSION ------- Medium Treads Centrium Leg Centrium Leg Centrium Leg Centrium Leg Centrium Leg > --- UTILITY ---------- Advanced Heat Sink High-capacity Storage Unit Compact Battery Improved Targeting Computer Core Analyzer ECM Suite Reaction Control System Improved Hardlight Generator > --- WEAPON ----------- Precision Phase Gun Enhanced Nova Cannon Railgun Linear Accelerator > --- INVENTORY -------- Cargo Storage Unit Improved Transmission Jammer Relay Coupler [Behemoth] Advanced Datajack Plasma Cutter [Rating: 125] Favorites ----------- Power Hybrid Fission Core Engine Ion Engine Power Core Hybrid Fission Core Reactor Reinforced Quantum Reactor Propulsion Light Treads Treads Light Treads Leg Centrium Leg Wheel Armored Huge Wheel Hover Unit Antigrav Array Flight Unit Q-thruster Utility Cargo Storage Unit Device Advanced Cooling System Storage Cargo Storage Unit Processor 0b10 Alert Chip Hackware Relay Coupler [Sentry] Protection Hardened Light Armor Plating Weapon Assault Rifle Energy Gun Dispersion Rifle Energy Cannon Advanced Plasma Cannon Ballistic Gun Assault Rifle Ballistic Cannon Linear Accelerator Launcher Smartbomb Launcher Special Weapon Improved Remote Datajack Impact Weapon Powered Hammer Build | -11 -10 -10 -10 -9 -8 -8 -8 -8 -7 -7 -7 -7 -6 -6 -6 -6 -5 -5 -5 -5 -5 -5 -4 -4 -3 -3 -2 ------- Run | Jun Mat Min Exi Min Mat Gar Mat Gar Fac Gar Fac Gar Fac Gar Fac Gar Fac Was Fac Gar Fac Gar Fac Gar Res DSF Res Slots Evolved 16 | . . . . . 4 . . . 2 . . . 2 . . . 2 . . . . . 2 . 2 . 2 Power 1 | . . . . . . . . . . . . . 1 . . . . . . . . . . . . . . Propulsion 4 | . . . . . 2 . . . . . . . . . . . . . . . . . 2 . . . . Utility 9 | . . . . . 2 . . . 2 . . . 1 . . . 2 . . . . . . . 2 . . Weapon 2 | . . . . . . . . . . . . . . . . . . . . . . . . . . . 2 Parts Attached 379 | 2 13 5 . 1 21 8 16 20 5 10 23 9 8 39 5 10 10 5 29 54 8 18 19 1 10 15 15 Power 31 | . 1 . . . 2 . 1 1 . 1 . . 1 4 2 . 1 . 1 8 . . 1 . 3 2 2 Engine 9 | . 1 . . . 2 . 1 . . . . . 1 4 . . . . . . . . . . . . . Core 7 | . . . . . . . . 1 . . . . . . 2 . 1 . 1 2 . . . . . . . Reactor 15 | . . . . . . . . . . 1 . . . . . . . . . 6 . . 1 . 3 2 2 Propulsion 53 | 2 . 1 . . 6 . 11 2 . 2 1 2 1 7 . . . 1 1 2 . 1 3 . 1 7 2 Treads 37 | 2 . 1 . . 6 . 9 2 . 2 . 2 . 4 . . . 1 1 2 . 1 3 . . . 1 Leg 10 | . . . . . . . . . . . . . . 3 . . . . . . . . . . . 7 . Wheel 4 | . . . . . . . 2 . . . 1 . 1 . . . . . . . . . . . . . . Hover 1 | . . . . . . . . . . . . . . . . . . . . . . . . . 1 . . Flight 1 | . . . . . . . . . . . . . . . . . . . . . . . . . . . 1 Utility 159 | . 5 1 . . 6 4 3 3 3 1 8 4 3 14 2 6 7 3 18 25 8 10 12 . 6 1 6 Device 82 | . . . . . 1 1 2 1 2 1 4 4 3 5 1 2 3 3 13 15 4 5 5 . 3 1 3 Storage 13 | . 3 1 . . 1 . . . . . 2 . . . . . . . . 2 . 1 1 . . . 2 Processor 6 | . . . . . 2 . . . . . . . . 1 . . . . . . . 1 . . 2 . . Hackware 43 | . . . . . . . . . . . 1 . . 7 1 4 4 . 5 7 4 2 6 . 1 . 1 Protection 15 | . 2 . . . 2 3 1 2 1 . 1 . . 1 . . . . . 1 . 1 . . . . . Artifact . | . . . . . . . . . . . . . . . . . . . . . . . . . . . . Weapon 136 | . 7 3 . 1 7 4 1 14 2 6 14 3 3 14 1 4 2 1 9 19 . 7 3 1 . 5 5 Energy Gun 11 | . . . . . 3 . . . . . . . . 3 . 1 . . 1 . . . . . . 2 1 Energy Cannon 56 | . . . . . 2 2 . 10 2 4 9 2 2 1 . . . . 2 13 . 4 2 . . . 1 Ballistic Gun 9 | . 3 2 . . . . . . . . . . . . . . . . . . . . . . . 2 2 Ballistic Cannon 2 | . . . . . . . . . . . . . . . . . . . . . . . . . . 1 1 Launcher 32 | . 4 1 . 1 1 2 . 4 . 2 5 1 1 4 . 1 . 1 1 2 . . . 1 . . . Special Weapon 19 | . . . . . . . . . . . . . . 4 1 2 1 . 3 4 . 3 1 . . . . Impact Weapon 7 | . . . . . 1 . 1 . . . . . . 2 . . 1 . 2 . . . . . . . . Slashing Weapon . | . . . . . . . . . . . . . . . . . . . . . . . . . . . . Piercing Weapon . | . . . . . . . . . . . . . . . . . . . . . . . . . . . . Special Melee Weapon . | . . . . . . . . . . . . . . . . . . . . . . . . . . . . Unidentified Prototypes 5 | . . . . . . . 1 . . . . . . 1 . . . . 1 . . . . . 1 . 1 Parts Lost 64 | . 1 2 . . 3 . 2 1 . . 1 1 5 9 . . 2 . . 5 . . 18 1 . 8 5 Power 10 | . 1 . . . . . 1 . . . . . . 2 . . 1 . . 1 . . . . . 3 1 Propulsion 14 | . . 1 . . 1 . 1 . . . . . 2 3 . . . . . . . . 2 . . 1 3 Utility 31 | . . . . . 1 . . 1 . . 1 1 3 2 . . 1 . . 4 . . 14 . . 2 1 Weapon 9 | . . 1 . . 1 . . . . . . . . 2 . . . . . . . . 2 1 . 2 . Highest Loss Streak 18 | . 1 1 . . 1 . 2 1 . . 1 1 4 7 . . 1 . . 2 . . 18 1 . 4 5 To Critical Strikes 1 | . . . . . . . . . . . . . 1 . . . . . . . . . . . . . . Average Slot Usage (%) 80 | . 99 100 100 100 92 100 91 75 80 78 76 77 83 65 78 77 77 76 80 76 78 81 70 2 16 53 63 Engine 4 | . 14 14 14 14 9 9 8 3 . . . . 5 5 2 . . . . . . . . . . . . Core 2 | . . . . . . . . 5 7 6 . . . . 10 13 9 11 10 2 . . . . . . . Reactor 2 | . . . . . . . . . . . 7 7 6 . . . . . . 8 11 11 9 . 1 4 3 Treads 16 | . 28 28 28 28 30 36 28 18 15 15 15 15 12 11 13 13 11 11 11 11 11 11 14 . . . 1 Wheel 1 | . . . . . . . 3 9 7 7 7 7 6 . . . . . . . . . . . . . . Device 8 | . . . . . 9 9 9 8 15 14 16 22 24 4 4 5 10 17 10 10 8 9 3 . 5 8 11 Storage 7 | . 14 14 14 14 9 9 9 9 7 7 7 7 6 6 6 6 5 5 5 5 5 5 4 . . . 4 Processor 1 | . . . . . 8 . . . . . . . . 2 6 6 4 . . . . . . . 2 9 7 Hackware 11 | . . . . . . . . . . . 6 7 6 16 20 20 20 23 28 23 28 26 27 . 3 2 . Protection 5 | . 13 14 14 14 9 18 14 9 15 15 4 . . 2 . . . . . . . 2 . . . . . Energy Gun 1 | . . . . . 6 9 9 2 . . . . . 2 6 4 1 . . . . . . . . 2 1 Energy Cannon 3 | . . . . . 7 6 8 4 7 6 5 3 12 . . . . . 2 5 4 6 5 . . . 2 Ballistic Gun 3 | . 20 27 28 17 . . . . . . . . . . . . . . . . . . . . . 1 4 Launcher 2 | . 7 . . 10 . 2 . 4 3 3 3 4 . 1 . 1 . 5 . . . . . 2 . . . Special Weapon 2 | . . . . . . . . . . . . . . 5 5 4 4 . 4 3 5 4 4 . . . . Naked Turns 231 | . . . . . . . . . . . . . . . . . . . . . . . 41 135 35 . 20 Heaviest Build 240 | 12 35 94 94 96 110 115 127 132 130 141 180 180 194 194 178 173 174 177 180 240 220 226 215 9 25 61 119 Greatest Support 225 | 40 40 40 40 40 82 82 96 60 28 60 28 42 28 150 150 150 150 150 145 145 145 150 225 3 26 180 150 Greatest Overweight (x) 8 | . . 2 2 2 2 1 4 4 4 5 6 6 6 8 1 1 1 1 1 1 1 1 . 2 . . 3 Average Overweight (x) 2 | . . . 2 2 1 1 2 3 4 3 5 5 6 3 1 1 1 1 1 1 1 1 . . . . . Largest Inventory Capacity 30 | 8 15 25 25 25 25 25 25 25 25 25 30 30 30 30 30 30 30 30 30 30 30 30 30 5 5 5 20 Average Capacity 26 | 8 11 16 25 25 25 25 25 25 25 25 27 30 30 30 30 30 30 30 30 30 30 30 28 5 5 5 12 Most Carried 30 | 7 13 15 16 24 25 25 25 25 24 25 30 30 30 30 30 30 30 30 30 30 30 30 28 5 5 5 8 Average Carried 24 | 6 9 13 15 21 21 24 24 24 23 24 26 29 29 26 29 29 29 28 29 27 29 28 24 3 4 4 5 Final Capacity 30 | 8 15 25 25 25 25 25 25 25 25 25 30 30 30 30 30 30 30 30 30 30 30 30 5 5 5 5 5 Final Carried 30 | 6 13 15 16 24 25 25 24 25 24 25 30 30 28 30 30 30 28 30 29 29 29 30 5 3 5 5 5 Class Distribution -------------------- 47% | Botlord-Mutant 36% | Mutant 6% | Scavenger-Mutant 4% | Bothacker-Mutant 3% | Hauler-Mutant Dominant Class ---------------- Mutant | -10/Materials Mutant | -10/Mines Mutant | -10/Exiles Mutant | -9/Mines Scavenger-Mutant | -8/Materials Scavenger-Mutant | -8/Garrison Scavenger-Mutant | -8/Materials Mutant | -8/Garrison Mutant | -7/Factory Mutant | -7/Garrison Hauler-Mutant | -7/Factory Bothacker-Mutant | -7/Garrison Botlord-Mutant | -6/Factory Botlord-Mutant | -6/Garrison Botlord-Mutant | -6/Factory Botlord-Mutant | -6/Garrison Botlord-Mutant | -5/Factory Botlord-Mutant | -5/Waste Botlord-Mutant | -5/Factory Botlord-Mutant | -5/Garrison Botlord-Mutant | -5/Factory Botlord-Mutant | -5/Garrison Botlord-Mutant | -4/Factory Mutant | -4/Garrison Mutant | -3/Research Mutant | -3/DSF Gunner | -2/Research Resources | -11 -10 -10 -10 -9 -8 -8 -8 -8 -7 -7 -7 -7 -6 -6 -6 -6 -5 -5 -5 -5 -5 -5 -4 -4 -3 -3 -2 ----------- Run | Jun Mat Min Exi Min Mat Gar Mat Gar Fac Gar Fac Gar Fac Gar Fac Gar Fac Was Fac Gar Fac Gar Fac Gar Res DSF Res Matter Collected 8694 | 200 491 160 . 106 165 255 115 293 42 249 413 574 150 780 66 355 324 361 663 1387 121 709 260 127 . 221 107 Remotely 2375 | . . . . . . 89 . . . . 208 574 150 . . . 124 361 169 294 . 406 . . . . . Salvage Created 9588 | . 692 110 . 96 845 603 464 532 42 475 435 569 377 922 . 52 . 938 120 863 . 348 639 52 . 237 177 Parts 468 | . 62 14 . 6 43 24 24 31 5 19 34 39 6 42 . 15 . 5 7 35 . 13 22 4 . 11 7 Haulers Intercepted 6 | . 2 . . . 3 . 1 . . . . . . . . . . . . . . . . . . . . Recyclers Shooed 6 | . 2 . . . . . . . . . 2 . 1 . . . . . . . . . 1 . . . . Parts Field Recycled . | . . . . . . . . . . . . . . . . . . . . . . . . . . . . Retrieved Matter . | . . . . . . . . . . . . . . . . . . . . . . . . . . . . Parts Self-Destructed . | . . . . . . . . . . . . . . . . . . . . . . . . . . . . Prevented . | . . . . . . . . . . . . . . . . . . . . . . . . . . . . Kills | -11 -10 -10 -10 -9 -8 -8 -8 -8 -7 -7 -7 -7 -6 -6 -6 -6 -5 -5 -5 -5 -5 -5 -4 -4 -3 -3 -2 ------- Run | Jun Mat Min Exi Min Mat Gar Mat Gar Fac Gar Fac Gar Fac Gar Fac Gar Fac Was Fac Gar Fac Gar Fac Gar Res DSF Res Combat Hostiles Destroyed 203 | . 16 7 . 3 15 15 7 15 1 15 9 26 10 8 . 7 . 4 2 20 . 4 9 4 . 4 2 Melee 2 | . . . . . 2 . . . . . . . . . . . . . . . . . . . . . . Guns 24 | . 6 4 . . 3 2 3 2 . . . . . . . . . . . . . . . . . 3 1 Cannons 51 | . . . . . 6 4 4 4 1 1 3 2 2 . . . . . 1 11 . 3 8 . . 1 . AOE 118 | . 10 3 . 3 4 9 . 9 . 12 6 24 7 7 . 7 . 4 . 9 . . . 4 . . . Classes Destroyed 21 | . 9 . . 1 2 . 1 2 1 1 . 1 1 . . 1 . 1 . . . . . . . . . Worker 8 | . 2 . . . 3 . . . . . 3 . . . . . . . . . . . . . . . . Builder 5 | . 2 . . . . . . . . . 3 . . . . . . . . . . . . . . . . Tunneler 1 | . 1 . . . . . . . . . . . . . . . . . . . . . . . . . . Hauler 6 | . 2 . . . 3 . 1 . . . . . . . . . . . . . . . . . . . . Recycler 5 | . 1 . . . 1 . . . . . 2 . 1 . . . . . . . . . . . . . . Mechanic 2 | . . . . 1 1 . . . . . . . . . . . . . . . . . . . . . . Operator 1 | . 1 . . . . . . . . . . . . . . . . . . . . . . . . . . Watcher 10 | . 3 . . . 1 . 1 1 . . 2 . . . . . . . . 1 . . 1 . . . . Swarmer 48 | . 3 4 . 1 4 . . 3 . . 3 13 . 3 . 3 . . . 6 . . . 4 . 1 . Cutter 4 | . . . . . . . . . . . . . . . . 4 . . . . . . . . . . . Grunt 92 | . 13 3 . 2 4 13 6 7 . 8 4 11 6 1 . . . . . 8 . . 4 . . 2 . Brawler 6 | . . . . . . . . 2 . 1 . . 1 . . . . . . 2 . . . . . . . Duelist 4 | . . . . . . . . . . 3 . . . . . . . . . . . . 1 . . . . Protector 1 | . . . . . . . . . . . . . 1 . . . . . . . . . . . . . . Sentry 15 | . . . . . 3 2 . 1 . 2 1 . 1 . . . . . . 2 . 1 . . . . 2 Specialist 4 | . . . . . . . . . . . . . . . . . . . . 1 . 2 1 . . . . Hunter 12 | . . . . . 4 . . 1 . . . . . 3 . . . . . 1 . 1 2 . . . . Programmer 9 | . . . . . . . . . 1 1 1 1 1 . . . . . 2 1 . . 1 . . . . Heavy 2 | . . . . . . . 1 . . . . . . . . . . . . . . . . . . 1 . Behemoth 4 | . . . . . . . . 1 . . . . . 2 . . . . . . . 1 . . . . . Compactor 4 | . . . . . . . . . . . . . . . . . . 4 . . . . . . . . . Infiltrator 1 | . . . . . . . . . . . . 1 . . . . . . . . . . . . . . . Best Kill Streak 10 | . 7 2 . 3 6 6 2 6 1 10 8 7 8 3 . 4 . 3 1 6 . 1 10 4 . 2 1 Combat Bots Only 10 | . 6 2 . 2 4 6 2 6 1 10 3 7 7 3 . 4 . 3 1 6 . 1 9 4 . 2 1 Max Kills in Single Turn 4 | . 2 2 . 3 2 2 1 3 1 4 3 3 3 2 . 3 . 1 1 3 . 1 1 3 . 1 1 Gunslinging . | . . . . . . . . . . . . . . . . . . . . . . . . . . . . Exploded 4 | . 1 2 . 2 2 2 . 3 . 4 2 3 2 2 . 3 . 1 . 3 . . . 3 . . . Melee 1 | . . . . . 1 . . . . . . . . . . . . . . . . . . . . . . Uniques/NPCs Destroyed . | . . . . . . . . . . . . . . . . . . . . . . . . . . . . Combat | -11 -10 -10 -10 -9 -8 -8 -8 -8 -7 -7 -7 -7 -6 -6 -6 -6 -5 -5 -5 -5 -5 -5 -4 -4 -3 -3 -2 -------- Run | Jun Mat Min Exi Min Mat Gar Mat Gar Fac Gar Fac Gar Fac Gar Fac Gar Fac Was Fac Gar Fac Gar Fac Gar Res DSF Res Damage Taken 18619 | . 543 203 . . 617 508 460 968 14 263 452 494 846 2070 . 89 250 17 544 1407 249 500 2971 476 . 3777 901 Core 2479 | . 88 38 . . 50 79 13 105 . . 25 79 100 149 . 20 23 . 22 165 20 . 318 412 . 563 210 Absorbed by Shields 475 | . . . . . . . . . . . . . . 21 . 9 76 5 61 31 76 58 . . . 138 . Reduced by Siege Mode 511 | . . . . . . . . . . . . . . . . . . . . 22 . 28 461 . . . . Redirected to Shielding 107 | . . . . . . . . 52 . 19 36 . . . . . . . . . . . . . . . . Regen/Repaired (Parts) 124 | . . . . . 108 . . . . . . . . . . 3 13 . . . . . . . . . . Core Remaining (%) 65 | 100 . . . 49 . . . 55 . . . 85 . . . 68 . . . . . 77 . 36 . 56 . Volleys Fired 916 | . 64 11 . 2 48 37 30 37 1 24 36 32 12 196 5 30 7 17 30 114 24 72 65 2 . 16 4 Largest 3 | . 2 2 . 1 2 2 2 2 2 2 2 2 2 1 1 1 1 1 1 2 1 2 2 1 . 2 3 Hottest 221 | . 40 40 . 33 135 135 135 138 188 188 203 203 203 98 5 88 7 46 98 218 120 70 155 46 . 188 221 Shots Fired 1178 | . 109 15 . 2 93 57 59 56 2 38 43 40 19 196 5 31 8 17 32 124 25 88 79 2 . 26 12 Gun 251 | . 90 8 . . 45 21 29 10 . . . . . 8 . 14 1 . 1 . . . . . . 20 4 Cannon 467 | . . . . . 45 25 30 38 2 30 33 21 14 10 . . . . 13 81 8 58 45 . . 6 8 Launcher 141 | . 19 7 . 2 3 11 . 8 . 8 10 19 5 16 . 3 . 17 1 10 . . . 2 . . . Special 319 | . . . . . . . . . . . . . . 162 5 14 7 . 17 33 17 30 34 . . . . Kinetic 116 | . 90 8 . . . . . . . . . . . . . . . . . . . . . . . 10 8 Thermal 744 | . . . . . 90 46 59 44 2 30 33 21 14 167 . 14 1 . 11 81 8 58 45 . . 16 4 Explosive 141 | . 19 7 . 2 3 11 . 8 . 8 10 19 5 16 . 3 . 17 1 10 . . . 2 . . . Electromagnetic 7 | . . . . . . . . 4 . . . . . . . . . . 3 . . . . . . . . Robot Hit Streak 34 | . 20 4 . . 17 9 19 22 23 3 6 6 6 32 22 26 7 14 3 18 9 13 34 . . 6 3 Robot Miss Streak 6 | . 3 3 . . 3 3 3 1 . 4 6 2 1 3 . 1 2 . 4 2 3 2 1 . . 1 1 Penetration Max . | . . . . . . . . . . . . . . . . . . . . . . . . . . . . Secondary Targets 2 | . 2 . . . . . . . . . . . . . . . . . . . . . . . . . . Max Gunslinging Chain 1 | . 1 . . . . . . . . . . . . . . . . . . . . . . . . . . Capacitor 5 | . . . . . . . . . . . . . . 5 . . . . . . . . . . . . . Shots Hit Robots 744 | . 63 6 . . 68 31 42 31 1 13 13 14 10 162 5 12 7 7 15 66 18 65 69 . . 19 7 Core Hits 424 | . 45 14 . 6 33 24 18 24 1 23 22 28 21 71 . 7 . 11 2 29 . 8 16 5 . 12 4 Critical Kills 7 | . . . . . 1 . . . . 1 . . 1 . . . . . 1 1 . . 1 . . . 1 Critical Parts Destroyed 4 | . . . . . 1 . . . . . . . . 3 . . . . . . . . . . . . . Critical Strikes 23 | . . . . . 6 2 1 3 . 1 . . 1 5 . . . . 1 1 . . 1 . . . 1 Burn 9 | . . . . . 4 2 1 2 . . . . . . . . . . . . . . . . . . . Meltdown 6 | . . . . . . . . . . 1 . . 1 . . . . . 1 1 . . 1 . . . 1 Destroy 2 | . . . . . . . . . . . . . . 2 . . . . . . . . . . . . . Corrupt 1 | . . . . . . . . 1 . . . . . . . . . . . . . . . . . . . Smash 3 | . . . . . 2 . . . . . . . . 1 . . . . . . . . . . . . . Sever 2 | . . . . . . . . . . . . . . 2 . . . . . . . . . . . . . Melee Attacks 18 | . . . . . 4 . 1 2 . . . . . 6 . . 3 . 2 . . . . . . . . Impact 18 | . . . . . 4 . 1 2 . . . . . 6 . . 3 . 2 . . . . . . . . Slashing . | . . . . . . . . . . . . . . . . . . . . . . . . . . . . Piercing . | . . . . . . . . . . . . . . . . . . . . . . . . . . . . Sneak Attacks . | . . . . . . . . . . . . . . . . . . . . . . . . . . . . Combat Hostiles . | . . . . . . . . . . . . . . . . . . . . . . . . . . . . Follow-up Attacks . | . . . . . . . . . . . . . . . . . . . . . . . . . . . . Damage Inflicted 32388 | . 1734 417 . 214 1899 1651 1039 1673 38 1855 2056 3233 1887 3846 . 656 15 2587 160 3316 174 1280 1424 409 . 565 260 Guns 3003 | . 805 64 . . 710 299 455 123 . . . . . 135 . . . . . . . . . . . 360 52 Cannons 8856 | . . . . . 554 395 533 726 38 457 515 325 371 292 . . . . 160 1262 174 1280 1372 . . 194 208 Explosions 18542 | . 925 345 . 214 516 957 . 824 . 1398 1541 2908 1516 1727 . 656 . 2587 . 2041 . . . 387 . . . Melee 251 | . . . . . 101 . . . . . . . . 150 . . . . . . . . . . . . . Ramming 194 | . 4 8 . . 18 . 51 . . . . . . . . . 15 . . 13 . . 52 22 . 11 . Kinetic 1175 | . 805 64 . . . . . . . . . . . . . . . . . . . . . . . 215 91 Thermal 12092 | . . . . . 1264 694 988 749 38 457 515 325 371 1969 . . . . 126 1262 174 1280 1372 . . 339 169 Explosive 18542 | . 925 345 . 214 516 957 . 824 . 1398 1541 2908 1516 1727 . 656 . 2587 . 2041 . . . 387 . . . Electromagnetic 134 | . . . . . . . . 100 . . . . . . . . . . 34 . . . . . . . . Impact 251 | . . . . . 101 . . . . . . . . 150 . . . . . . . . . . . . . Slashing . | . . . . . . . . . . . . . . . . . . . . . . . . . . . . Piercing . | . . . . . . . . . . . . . . . . . . . . . . . . . . . . Highest Corruption 32 | . . . . . . . . . . 2 3 3 1 1 1 1 1 28 28 28 28 32 19 19 . . 1 Average Corruption 12 | . . . . . . . . . . 1 2 3 1 1 1 1 1 15 28 28 28 30 16 19 . . 1 Corruption Purged . | . . . . . . . . . . . . . . . . . . . . . . . . . . . . Corruption Blocked . | . . . . . . . . . . . . . . . . . . . . . . . . . . . . Effects 520 | . . . . . . . . . . 15 32 25 . 18 3 13 9 9 88 128 48 109 10 12 . . 1 Message Errors 133 | . . . . . . . . . . 5 8 3 . 2 2 5 3 2 20 38 13 28 2 1 . . 1 Matter Fused 122 | . . . . . . . . . . 3 11 6 . 4 1 1 2 2 24 30 10 23 1 4 . . . Heat Flow Errors 69 | . . . . . . . . . . 2 2 5 . 2 . 2 . 2 12 12 6 19 . 5 . . . Energy Discharges 48 | . . . . . . . . . . 3 4 1 . 2 . 3 . . 7 11 6 8 2 1 . . . Parts Rejected 5 | . . . . . . . . . . . . . . . . . . . 1 4 . . . . . . . Parts Fused 7 | . . . . . . . . . . . . . . . . . . . . 1 . 6 . . . . . Data Loss (minor) 65 | . . . . . . . . . . 1 2 7 . 6 . 1 1 . 10 14 6 17 . . . . . Data Loss (major) 31 | . . . . . . . . . . 1 3 3 . 1 . . 1 2 7 6 4 2 1 . . . . Misfires 11 | . . . . . . . . . . . 1 . . . . 1 1 . 2 2 2 2 . . . . . Alerts 12 | . . . . . . . . . . . . . . 1 . . 1 1 3 4 . 1 1 . . . . Misdirections 5 | . . . . . . . . . . . . . . . . . . . 2 . . 1 1 1 . . . Weapon Failures 12 | . . . . . . . . . . . 1 . . . . . . . . 6 1 2 2 . . . . Overload Shots 5 | . . . . . . . . . . . . . . . . . . . . . . . 5 . . . . Overflow Damage 1090 | . 6 46 . . 103 7 12 37 . 86 102 195 72 166 . 32 . 5 . 202 . 18 1 . . . . Projectiles 116 | . . . . . . . . 2 . 32 34 . . . . . . . . 29 . 18 1 . . . . Explosions 867 | . 6 46 . . 50 7 . 35 . 54 68 195 72 124 . 32 . 5 . 173 . . . . . . . Melee 107 | . . . . . 53 . 12 . . . . . . 42 . . . . . . . . . . . . . Knockbacks 2 | . . . . . . . 1 . . . . . . . . . . . . 1 . . . . . . . Impact 2 | . . . . . . . 1 . . . . . . . . . . . . 1 . . . . . . . Kinetic . | . . . . . . . . . . . . . . . . . . . . . . . . . . . . Secondary . | . . . . . . . . . . . . . . . . . . . . . . . . . . . . Self-Inflicted Damage 317 | . 67 33 . . . 72 21 . . . . 56 28 . . . . 23 . . . . 6 11 . . . Shots 14 | . 5 2 . . . 2 . . . . . 2 1 . . . . 2 . . . . . . . . . Rammed 18 | . 2 3 . . 2 . 2 . . . . . . . . . 1 . . 1 . . 4 3 . . . Targets Rammed 26 | . 2 3 . . 3 . 2 . . . . . . . . . 1 . . 1 . . 4 3 . 7 . Kicked 7 | . . . . . . . . . . . . . . . . . . . . . . . . . . 7 . Crushed 1 | . . . . . 1 . . . . . . . . . . . . . . . . . . . . . . Highest Temperature 396 | . 26 15 . 2 315 352 396 248 45 270 229 360 180 372 . 206 22 219 265 335 362 268 238 261 . 248 207 Average Temperature 94 | . 11 5 . 1 83 119 131 84 30 94 68 134 75 107 . 41 18 118 108 91 94 110 77 111 . 100 91 Received Heat Transfer 3512 | . 273 48 . . 180 252 126 177 . . 63 99 225 226 . 33 9 . 19 486 71 27 440 54 . 569 135 Effects 15 | . . . . . 1 . 2 . . . . 1 . . . . . . . 6 1 4 . . . . . Shutdowns 4 | . . . . . . . 1 . . . . 1 . . . . . . . 1 1 . . . . . . Energy Bleed 2 | . . . . . 1 . 1 . . . . . . . . . . . . . . . . . . . . Interference 9 | . . . . . . . . . . . . . . . . . . . . 5 . 4 . . . . . Siege Activations 8 | . . . . . . . . . . . . . . . . . . . . 3 . 4 1 . . . . Total Turns 144 | . . . . . . . . . . . . . . . . . . . . 18 . 54 72 . . . . Longest Duration 72 | . . . . . . . . . . . . . . . . . . . . 8 . 30 72 . . . . Robots Corrupted . | . . . . . . . . . . . . . . . . . . . . . . . . . . . . Combat Hostiles . | . . . . . . . . . . . . . . . . . . . . . . . . . . . . Parts Fried 4 | . . . . . 1 . . 3 . . . . . . . . . . . . . . . . . . . Impact Corruptions 3 | . . . . . 1 . 1 . . . . . . 1 . . . . . . . . . . . . . Robots Melted 8 | . . . . . . . . . . 2 . . 1 . . . . . 1 1 . 1 1 . . . 1 Combat Hostiles 7 | . . . . . . . . . . 2 . . 1 . . . . . 1 . . 1 1 . . . 1 Parts Melted 32 | . . . . . 4 1 4 2 . 3 . 1 1 3 . 1 . . 3 1 . 3 4 . . . 1 Heat Transferred 20853 | . . . . . 2664 1221 1628 1271 50 650 687 411 435 5596 . . . . 150 1716 129 1722 1931 . . 444 148 Parts Sabotaged 3 | . . . . . . . . . . . . . . . . . . . . . . . 3 . . . . Parts Stolen . | . . . . . . . . . . . . . . . . . . . . . . . . . . . . Parts Stripped . | . . . . . . . . . . . . . . . . . . . . . . . . . . . . Power Chain Reactions . | . . . . . . . . . . . . . . . . . . . . . . . . . . . . Missiles Intercepted . | . . . . . . . . . . . . . . . . . . . . . . . . . . . . Alert | -11 -10 -10 -10 -9 -8 -8 -8 -8 -7 -7 -7 -7 -6 -6 -6 -6 -5 -5 -5 -5 -5 -5 -4 -4 -3 -3 -2 ------- Run | Jun Mat Min Exi Min Mat Gar Mat Gar Fac Gar Fac Gar Fac Gar Fac Gar Fac Was Fac Gar Fac Gar Fac Gar Res DSF Res Peak Influence 2072 | . 435 263 . 192 352 523 395 760 456 687 410 1238 847 1710 954 1514 1145 409 286 1382 1187 2071 2072 1618 921 802 533 Initial 1404 | . . 168 . . . 150 254 126 399 179 360 257 649 495 897 667 794 250 286 32 725 779 1087 1404 906 690 434 Average 627 | . 210 168 . 32 174 351 266 439 379 471 306 796 673 1000 913 1182 977 355 26 581 900 1553 1486 1554 906 739 471 Maximum Alert Level 5 | . 2 1 . . 1 2 1 3 2 2 2 4 3 5 3 4 4 2 1 4 4 5 5 5 3 3 2 Low Security (%) 23 | 100 48 65 . 100 42 6 25 17 . 14 12 . . . . . . . 97 26 . . . . . . . Level 1 18 | . 47 34 . . 57 41 74 40 35 10 62 12 . . . . . 54 2 7 . . . . . . 4 Level 2 18 | . 3 . . . . 52 . 19 64 74 25 31 81 22 . 6 . 45 . 24 1 . . . . 11 95 Level 3 19 | . . . . . . . . 22 . . . 38 18 37 100 28 67 . . 26 87 19 25 . 100 88 . Level 4 14 | . . . . . . . . . . . . 16 . 34 . 65 32 . . 15 11 24 34 91 . . . Level 5 5 | . . . . . . . . . . . . . . 5 . . . . . . . 56 37 8 . . . High Security . | . . . . . . . . . . . . . . . . . . . . . . . 2 . . . . Max Security . | . . . . . . . . . . . . . . . . . . . . . . . . . . . . Squads Dispatched 56 | . 3 . . 1 3 . 2 . 2 . 10 . 4 . 2 . 4 . 3 . 5 . 11 . 1 2 3 Investigation 20 | . 3 . . . 2 . . . . . 5 . 2 . 2 . 1 . 1 . 1 . 3 . . . . Extermination 11 | . . . . . . . . . 2 . 2 . 1 . . . . . 2 . 2 . 1 . . . 1 Reinforcement 11 | . . . . . 1 . 2 . . . 3 . . . . . . . . . . . 3 . . 2 . Assault 13 | . . . . 1 . . . . . . . . 1 . . . 2 . . . 2 . 4 . 1 . 2 Garrison 1 | . . . . . . . . . . . . . . . . . 1 . . . . . . . . . . Intercept . | . . . . . . . . . . . . . . . . . . . . . . . . . . . . Searches Triggered . | . . . . . . . . . . . . . . . . . . . . . . . . . . . . Construction Impeded 2 | . . . . . . . . . . . 2 . . . . . . . . . . . . . . . . Haulers Reinforced 3 | . . . . . . . . . . . 1 . . . . . . . . . . . 2 . . . . Active Scanning Responses . | . . . . . . . . . . . . . . . . . . . . . . . . . . . . Cargo Convoy Interrupts . | . . . . . . . . . . . . . . . . . . . . . . . . . . . . Stealth | -11 -10 -10 -10 -9 -8 -8 -8 -8 -7 -7 -7 -7 -6 -6 -6 -6 -5 -5 -5 -5 -5 -5 -4 -4 -3 -3 -2 --------- Run | Jun Mat Min Exi Min Mat Gar Mat Gar Fac Gar Fac Gar Fac Gar Fac Gar Fac Was Fac Gar Fac Gar Fac Gar Res DSF Res Distress Signals 25 | . 3 . . . 6 . 4 1 . . 2 . . . . . . . 1 . . . 7 . 1 . . Communications Jammed 137 | . . . . . . . . . . . . . 26 . . . . . . 16 64 . 31 . . . . Distress Signals 135 | . . . . . . . . . . . . . 24 . . . . . . 16 64 . 31 . . . . Times Spotted 407 | . 28 9 . 6 30 14 16 7 1 3 13 14 19 15 3 26 11 6 11 29 16 31 62 6 . 16 15 Peak Tracking Total 13 | . 5 3 . 4 6 6 5 2 1 6 4 3 7 4 3 6 5 3 3 6 5 5 13 7 3 8 6 Tactical Retreats 21 | . 3 . . . 1 . 1 . . 1 2 . . 1 . . . . . . . . 1 1 1 4 5 Traps | -11 -10 -10 -10 -9 -8 -8 -8 -8 -7 -7 -7 -7 -6 -6 -6 -6 -5 -5 -5 -5 -5 -5 -4 -4 -3 -3 -2 ------- Run | Jun Mat Min Exi Min Mat Gar Mat Gar Fac Gar Fac Gar Fac Gar Fac Gar Fac Was Fac Gar Fac Gar Fac Gar Res DSF Res Traps Triggered 55 | . 1 . . . . 3 . 8 . 5 . 5 . 6 . 5 1 . . 6 1 11 . 1 2 . . Indirectly . | . . . . . . . . . . . . . . . . . . . . . . . . . . . . Trap Hack Attempts . | . . . . . . . . . . . . . . . . . . . . . . . . . . . . Triggered . | . . . . . . . . . . . . . . . . . . . . . . . . . . . . Disarmed . | . . . . . . . . . . . . . . . . . . . . . . . . . . . . Reprogrammed . | . . . . . . . . . . . . . . . . . . . . . . . . . . . . Reused . | . . . . . . . . . . . . . . . . . . . . . . . . . . . . Traps Extracted . | . . . . . . . . . . . . . . . . . . . . . . . . . . . . Installed . | . . . . . . . . . . . . . . . . . . . . . . . . . . . . Triggered . | . . . . . . . . . . . . . . . . . . . . . . . . . . . . Machines | -11 -10 -10 -10 -9 -8 -8 -8 -8 -7 -7 -7 -7 -6 -6 -6 -6 -5 -5 -5 -5 -5 -5 -4 -4 -3 -3 -2 ---------- Run | Jun Mat Min Exi Min Mat Gar Mat Gar Fac Gar Fac Gar Fac Gar Fac Gar Fac Was Fac Gar Fac Gar Fac Gar Res DSF Res Machines Disabled 69 | . 10 4 . . 4 . . 7 . . 2 3 . 4 . 2 3 . 2 5 12 5 6 . . . . Max in Single Turn 3 | . 2 3 . . 2 . . 2 . . 1 1 . 1 . 1 . . 1 1 1 1 . . . . . Garrison Access 5 | . . . . . . . . . . . 1 . . . . . 1 . . . 1 . . . 1 . 1 Garrison Relay 12 | . . . . . . . . . . . . 1 . 3 . 3 . . . 3 . 2 . . . . . Machines Repaired . | . . . . . . . . . . . . . . . . . . . . . . . . . . . . Machines Sabotaged . | . . . . . . . . . . . . . . . . . . . . . . . . . . . . Overloaded Fab Kills . | . . . . . . . . . . . . . . . . . . . . . . . . . . . . Hacking | -11 -10 -10 -10 -9 -8 -8 -8 -8 -7 -7 -7 -7 -6 -6 -6 -6 -5 -5 -5 -5 -5 -5 -4 -4 -3 -3 -2 --------- Run | Jun Mat Min Exi Min Mat Gar Mat Gar Fac Gar Fac Gar Fac Gar Fac Gar Fac Was Fac Gar Fac Gar Fac Gar Res DSF Res Machines Accessed 79 | . 9 . 2 . 7 2 2 3 3 2 15 1 5 1 3 2 2 . 5 2 4 1 4 1 2 . 1 Terminals 46 | . 7 . . . 4 2 1 3 2 2 6 1 1 1 . 2 1 . 2 2 2 1 3 1 1 . 1 Fabricators 8 | . . . . . . . . . . . 3 . 2 . 1 . 1 . 1 . . . . . . . . Repair Stations 2 | . . . . . 1 . . . . . 1 . . . . . . . . . . . . . . . . Recycling Units 7 | . 2 . . . 1 . . . . . 2 . . . 1 . . . 1 . . . . . . . . Scanalyzers 2 | . . . . . . . . . . . 1 . 1 . . . . . . . . . . . . . . Garrison Access 12 | . . . . . 1 . 1 . 1 . 2 . 1 . 1 . . . 1 . 2 . 1 . 1 . . Total Hacks 176 | . 25 . 2 . 19 4 7 4 8 4 36 1 11 2 5 4 4 . 10 4 6 3 12 2 2 . 1 Successful 89 | . 13 . 2 . 11 2 4 2 3 2 23 1 5 1 5 1 2 . 3 . 4 1 1 1 2 . . Failed 86 | . 11 . . . 8 2 3 2 5 2 13 . 6 1 . 3 2 . 7 4 2 2 11 1 . . 1 Catastrophic 19 | . . . . . 2 . . 2 . . 2 . 2 . . . . . 2 2 . 1 6 . . . . Database Lockouts 1 | . 1 . . . . . . . . . . . . . . . . . . . . . . . . . . Manual 99 | . 24 . 1 . 14 . 4 . 2 . 17 . 7 . 3 . 4 . 7 . 4 . 11 . . . 1 Terminals 119 | . 23 . . . 13 4 6 4 7 4 19 1 2 2 . 4 2 . 3 4 3 3 11 2 1 . 1 Fabricators 17 | . . . . . . . . . . . 5 . 5 . 2 . 2 . 3 . . . . . . . . Repair Stations 4 | . . . . . 2 . . . . . 2 . . . . . . . . . . . . . . . . Recycling Units 8 | . 2 . . . 1 . . . . . 3 . . . 1 . . . 1 . . . . . . . . Scanalyzers 6 | . . . . . . . . . . . 3 . 3 . . . . . . . . . . . . . . Garrison Access 20 | . . . . . 3 . 1 . 1 . 4 . 1 . 2 . . . 3 . 3 . 1 . 1 . . Terminal Hacks 36 | . 6 . 2 . 5 2 3 2 . 2 7 1 . 1 . 1 1 . . . . 1 . 1 1 . . Record 1 | . . . 1 . . . . . . . . . . . . . . . . . . . . . . . . Part Schematic 1 | . 1 . . . . . . . . . . . . . . . . . . . . . . . . . . Robot Analysis 8 | . 3 . . . 4 . . . . . 1 . . . . . . . . . . . . . . . . Prototype ID Bank 2 | . 1 . . . . . 1 . . . . . . . . . . . . . . . . . . . . Open Door 1 | . . . . . . . . . . . . . . . . 1 . . . . . . . . . . . Open DSF 1 | . . . . . . . . . . . . . . . . . . . . . . . . . 1 . . Branch Access Points 1 | . . . . . . . . . . . . . . . . . 1 . . . . . . . . . . Emergency Access Points 5 | . . . . . . . . 1 . 1 1 . . 1 . . . . . . . 1 . . . . . Terminal Index 2 | . . . . . 1 . . . . . 1 . . . . . . . . . . . . . . . . Unreport Threat 2 | . . . . . . . 1 . . . 1 . . . . . . . . . . . . . . . . Locate Traps 3 | . 1 . . . . . 1 . . . 1 . . . . . . . . . . . . . . . . Recall Reinforcements 1 | . . . . . . . . . . . 1 . . . . . . . . . . . . . . . . Hauler Manifests 1 | . . . . . . . . . . . 1 . . . . . . . . . . . . . . . . Garrison Registry 3 | . . . . . . 1 . . . 1 . 1 . . . . . . . . . . . . . . . Patrol Navigation 1 | . . . . . . 1 . . . . . . . . . . . . . . . . . . . . . Security Stations 2 | . . . . . . . . 1 . . . . . . . . . . . . . . . 1 . . . EX-Prototype ID Bank 1 | . . . 1 . . . . . . . . . . . . . . . . . . . . . . . . Fabricator Hacks 3 | . . . . . . . . . . . 2 . . . 1 . . . . . . . . . . . . Network Status 1 | . . . . . . . . . . . . . . . 1 . . . . . . . . . . . . Load Schematic 1 | . . . . . . . . . . . 1 . . . . . . . . . . . . . . . . Build 1 | . . . . . . . . . . . 1 . . . . . . . . . . . . . . . . Repair Station Hacks 3 | . . . . . 2 . . . . . 1 . . . . . . . . . . . . . . . . Scan Component 2 | . . . . . 1 . . . . . 1 . . . . . . . . . . . . . . . . Repair 1 | . . . . . 1 . . . . . . . . . . . . . . . . . . . . . . Recycling Unit Hacks . | . . . . . . . . . . . . . . . . . . . . . . . . . . . . Scanalyzer 6 | . . . . . . . . . . . 3 . 3 . . . . . . . . . . . . . . Insert Component 2 | . . . . . . . . . . . 1 . 1 . . . . . . . . . . . . . . Analyze 4 | . . . . . . . . . . . 2 . 2 . . . . . . . . . . . . . . Garrison Access Hacks 13 | . . . . . 1 . 1 . 1 . 3 . 1 . 1 . . . 1 . 2 . 1 . 1 . . Unlock Access 11 | . . . . . 1 . 1 . 1 . 2 . 1 . 1 . . . 1 . 2 . 1 . . . . Seal Access 2 | . . . . . . . . . . . 1 . . . . . . . . . . . . . 1 . . Unauthorized Hacks 28 | . 7 . . . 3 . . . 2 . 7 . 1 . 3 . 1 . 2 . 2 . . . . . . Terminals 17 | . 5 . . . 2 . . . 2 . 5 . 1 . . . 1 . . . 1 . . . . . . Assimilate 3 | . . . . . 1 . . . . . 1 . 1 . . . . . . . . . . . . . . Botnet 13 | . 4 . . . 1 . . . 2 . 4 . . . . . 1 . . . 1 . . . . . . Operators 1 | . 1 . . . . . . . . . . . . . . . . . . . . . . . . . . Fabricators 2 | . . . . . . . . . . . . . . . 1 . . . 1 . . . . . . . . Fabnet 2 | . . . . . . . . . . . . . . . 1 . . . 1 . . . . . . . . Repair Stations . | . . . . . . . . . . . . . . . . . . . . . . . . . . . . Recycling Units 6 | . 2 . . . 1 . . . . . 1 . . . 1 . . . 1 . . . . . . . . Tunnel 6 | . 2 . . . 1 . . . . . 1 . . . 1 . . . 1 . . . . . . . . Scanalyzers . | . . . . . . . . . . . . . . . . . . . . . . . . . . . . Garrison Access 3 | . . . . . . . . . . . 1 . . . 1 . . . . . 1 . . . . . . Eject 3 | . . . . . . . . . . . 1 . . . 1 . . . . . 1 . . . . . . Data Cores Recovered . | . . . . . . . . . . . . . . . . . . . . . . . . . . . . Used . | . . . . . . . . . . . . . . . . . . . . . . . . . . . . Hacking Detections 60 | . 7 . . . 6 2 1 2 2 1 14 . 4 1 1 2 2 . 4 2 3 1 3 1 . . 1 Full Trace Events 10 | . . . . . 1 . . . . . 3 . 2 . . . 1 . . . . . 3 . . . . Feedback Events . | . . . . . . . . . . . . . . . . . . . . . . . . . . . . Feedback Blocked . | . . . . . . . . . . . . . . . . . . . . . . . . . . . . Robot Schematics Acquired . | . . . . . . . . . . . . . . . . . . . . . . . . . . . . Robots Built . | . . . . . . . . . . . . . . . . . . . . . . . . . . . . Authchips . | . . . . . . . . . . . . . . . . . . . . . . . . . . . . Time . | . . . . . . . . . . . . . . . . . . . . . . . . . . . . Total Robot Build Rating . | . . . . . . . . . . . . . . . . . . . . . . . . . . . . Part Schematics Acquired 3 | . 1 . . . . . . . . . 1 . 1 . . . . . . . . . . . . . . Parts Built 1 | . . . . . . . . . . . 1 . . . . . . . . . . . . . . . . Authchips . | . . . . . . . . . . . . . . . . . . . . . . . . . . . . Time 51 | . . . . . . . . . . . 51 . . . . . . . . . . . . . . . . Total Part Build Rating 1 | . . . . . . . . . . . 1 . . . . . . . . . . . . . . . . Parts Repaired 1 | . . . . . 1 . . . . . . . . . . . . . . . . . . . . . . Time 26 | . . . . . 26 . . . . . . . . . . . . . . . . . . . . . . Parts Recycled . | . . . . . . . . . . . . . . . . . . . . . . . . . . . . Recycled Matter . | . . . . . . . . . . . . . . . . . . . . . . . . . . . . Retrieved Matter . | . . . . . . . . . . . . . . . . . . . . . . . . . . . . Retrieved Components . | . . . . . . . . . . . . . . . . . . . . . . . . . . . . Parts Scanalyzed 2 | . . . . . . . . . . . 1 . 1 . . . . . . . . . . . . . . Part Schematics Acquired 2 | . . . . . . . . . . . 1 . 1 . . . . . . . . . . . . . . Parts Damaged . | . . . . . . . . . . . . . . . . . . . . . . . . . . . . Bothacking | -11 -10 -10 -10 -9 -8 -8 -8 -8 -7 -7 -7 -7 -6 -6 -6 -6 -5 -5 -5 -5 -5 -5 -4 -4 -3 -3 -2 ------------ Run | Jun Mat Min Exi Min Mat Gar Mat Gar Fac Gar Fac Gar Fac Gar Fac Gar Fac Was Fac Gar Fac Gar Fac Gar Res DSF Res Used RIF Installer 9 | . . . . . . 1 . 1 . 1 . 1 . 1 . 1 . . . 1 . 1 . 1 . . . Hotswap 1 | . . . . . . . . . . . . . . . . . . . . . . . . 1 . . . Zone Cloak 1 | . . . . . . . . . . . . . . 1 . . . . . . . . . . . . . Robot Detection 1 | . . . . . . . . . . 1 . . . . . . . . . . . . . . . . . Watcher Feeds 1 | . . . . . . . . 1 . . . . . . . . . . . . . . . . . . . Program Shield 1 | . . . . . . . . . . . . 1 . . . . . . . . . . . . . . . Autooverride 1 | . . . . . . . . . . . . . . . . . . . . 1 . . . . . . . Autoassimilate 2 | . . . . . . . . . . . . . . . . 1 . . . . . 1 . . . . . Robots Hacked 88 | . . . . . . . . . . . . . . 8 3 9 6 . 8 17 9 6 21 1 . . . Non-combat 15 | . . . . . . . . . . . . . . . 1 . 1 . 4 1 3 . 5 . . . . Combat 73 | . . . . . . . . . . . . . . 8 2 9 5 . 4 16 6 6 16 1 . . . Autooverrided 2 | . . . . . . . . . . . . . . . . . . . . 1 . 1 . . . . . Autoassimilated 10 | . . . . . . . . . . . . . . . . 2 . . . 2 . 1 5 . . . . Robot Hacks Applied 86 | . . . . . . . . . . . . . . 9 5 7 7 . 11 16 10 4 17 . . . . parse_system 6 | . . . . . . . . . . . . . . 1 . . 1 . . 2 . . 2 . . . . find_fabricator 1 | . . . . . . . . . . . . . . . . . . . . . . . 1 . . . . drop_inventory 5 | . . . . . . . . . . . . . . . . . . . 1 . 1 . 3 . . . . find_station 1 | . . . . . . . . . . . . . . . 1 . . . . . . . . . . . . purge_threat 2 | . . . . . . . . . . . . . . . . . . . 2 . . . . . . . . block_reporting 1 | . . . . . . . . . . . . . . . . . . . 1 . . . . . . . . map_route 3 | . . . . . . . . . . . . . . . . . . . 2 . . . 1 . . . . disable_shields 1 | . . . . . . . . . . . . . . . . . . . . . 1 . . . . . . find_garrison 3 | . . . . . . . . . . . . . . . 1 . . . 1 . 1 . . . . . . scatter_targeting 1 | . . . . . . . . . . . . . . . . . . . . . 1 . . . . . . overwrite_iff 15 | . . . . . . . . . . . . . . 1 1 . . . . 8 1 . 4 . . . . formatsys_low 3 | . . . . . . . . . . . . . . . 1 . 1 . . . . . 1 . . . . formatsys_high 44 | . . . . . . . . . . . . . . 7 1 7 5 . 4 6 5 4 5 . . . . Relay Couplers Released 68 | . . . . . . . . . . . 4 4 . 14 4 13 2 . . 13 4 9 . . . . 1 Ejected 10 | . . . . . . . . . . . 4 . . . 4 . . . . . 2 . . . . . . Machine Destruction 58 | . . . . . . . . . . . . 4 . 14 . 13 2 . . 13 2 9 . . . . 1 Attached 40 | . . . . . . . . . . . . . . 7 1 4 4 . 5 7 4 2 6 . . . . Fabnet Peak Effective % 4 | . . . . . . . . . . . . . . . . . 3 3 3 3 3 3 4 4 1 1 . Autooverrided 5 | . . . . . . . . . . . . . . . . . . . 1 . . 1 2 1 . . . Robots Rewired 23 | . . . . . . 3 . . . . . . . . . 3 . . . 3 . 14 . . . . . Allies Hacked 3 | . . . . . . . . . . . . . . . . . . . . . . . 3 . . . . Hacks Repelled . | . . . . . . . . . . . . . . . . . . . . . . . . . . . . Allies | -11 -10 -10 -10 -9 -8 -8 -8 -8 -7 -7 -7 -7 -6 -6 -6 -6 -5 -5 -5 -5 -5 -5 -4 -4 -3 -3 -2 -------- Run | Jun Mat Min Exi Min Mat Gar Mat Gar Fac Gar Fac Gar Fac Gar Fac Gar Fac Was Fac Gar Fac Gar Fac Gar Res DSF Res Total Allies 113 | . . 3 . 1 1 3 . . . 2 1 2 1 8 3 14 6 . 5 19 6 20 17 1 . . . Largest Group 17 | . . 3 3 4 1 3 3 . . 2 2 2 1 4 5 14 7 2 7 4 6 17 16 . . . . Highest-Rated Group 807 | . . 40 40 71 16 48 48 . . 157 157 124 26 116 130 478 254 77 272 172 316 807 783 . . . . Highest-Rated Ally 135 | . . 16 16 31 16 16 16 . . 95 95 62 26 32 29 80 80 48 54 97 65 116 135 . . . . Total Orders 82 | . . . . . 2 . 1 . . . 10 . . 6 . 25 2 . 7 3 . 19 7 . . . . STAY 33 | . . . . . 1 . 1 . . . 5 . . 4 . 5 . . 3 2 . 9 3 . . . . FOLLOW 34 | . . . . . 1 . . . . . 5 . . 2 . 6 1 . 4 1 . 10 4 . . . . AID 15 | . . . . . . . . . . . . . . . . 14 1 . . . . . . . . . . Ally Attacks 750 | . . 17 . 35 6 . 36 . . . 17 12 . 13 15 144 45 16 16 53 61 98 165 1 . . . Total Damage 23334 | . . 150 . 495 64 . 422 . . . 1042 469 . 481 224 2546 1707 670 412 2137 2529 4183 5758 45 . . . Kills 143 | . . 2 . 5 . . 4 . . . 8 4 . 2 1 18 8 2 2 9 18 26 34 . . . . Allies Corrupted 6 | . . . . . . . . . . . . . . . . . . 1 1 2 1 . 1 . . . . Allies Melted 3 | . . . . . . . . . . . . . . 2 . . . . . 1 . . . . . . . Intel | -11 -10 -10 -10 -9 -8 -8 -8 -8 -7 -7 -7 -7 -6 -6 -6 -6 -5 -5 -5 -5 -5 -5 -4 -4 -3 -3 -2 ------- Run | Jun Mat Min Exi Min Mat Gar Mat Gar Fac Gar Fac Gar Fac Gar Fac Gar Fac Was Fac Gar Fac Gar Fac Gar Res DSF Res Robot Analysis Total 8 | . 3 . . . 4 . . . . . 1 . . . . . . . . . . . . . . . . Derelict Logs Recovered 2 | . . 1 . 1 . . . . . . . . . . . . . . . . . . . . . . . Drone Launches . | . . . . . . . . . . . . . . . . . . . . . . . . . . . . Drone Recoveries . | . . . . . . . . . . . . . . . . . . . . . . . . . . . . Exploration | -11 -10 -10 -10 -9 -8 -8 -8 -8 -7 -7 -7 -7 -6 -6 -6 -6 -5 -5 -5 -5 -5 -5 -4 -4 -3 -3 -2 ------------- Run | Jun Mat Min Exi Min Mat Gar Mat Gar Fac Gar Fac Gar Fac Gar Fac Gar Fac Was Fac Gar Fac Gar Fac Gar Res DSF Res Turns Passed 32140 | 6 1376 1161 1099 1994 1419 1015 640 1555 525 1266 2156 1445 576 3004 177 2133 944 347 1798 2474 980 2097 687 271 304 270 421 Spaces Moved 13234 | 1 696 586 344 612 414 352 236 825 305 605 1086 680 275 614 66 799 363 125 690 843 348 759 354 280 443 204 329 Core 610 | . . . . . . . . . . . . . . . . . . . . . . . 74 280 213 . 43 Treads 8101 | 1 696 586 344 612 414 352 136 3 . 172 . 2 . 510 66 799 363 125 690 843 348 759 280 . . . . Legs 455 | . . . . . . . . . . . . . . 62 . . . . . . . . . . . 107 286 Wheels 3741 | . . . . . . . 100 822 305 433 1086 678 275 42 . . . . . . . . . . . . . Hover 327 | . . . . . . . . . . . . . . . . . . . . . . . . . 230 97 . Flight . | . . . . . . . . . . . . . . . . . . . . . . . . . . . . Fastest Speed 50 | 160 160 160 320 320 236 236 160 145 160 145 145 190 190 175 240 240 240 240 240 240 240 240 50 50 50 60 50 Average Speed 208 | 160 160 179 320 320 250 236 206 160 160 184 176 190 190 371 240 240 240 240 240 240 240 240 137 79 55 91 115 Slowest Speed 680 | 160 160 320 320 320 320 236 410 240 160 240 190 477 190 680 240 240 240 240 240 240 240 240 160 150 60 120 200 Overloaded Moves . | . . . . . . . . . . . . . . . . . . . . . . . . . . . . Propulsion Burnouts . | . . . . . . . . . . . . . . . . . . . . . . . . . . . . Robots Hopped . | . . . . . . . . . . . . . . . . . . . . . . . . . . . . Cave-ins Triggered . | . . . . . . . . . . . . . . . . . . . . . . . . . . . . Exploration Rate (%) 46 | 1 98 97 70 98 44 43 26 80 9 51 32 72 9 43 3 79 9 77 25 67 9 82 22 42 10 90 12 Regions Visited 27 Branch Regions 3 Pre-discovered Areas 9 | . 2 1 1 1 1 . . . . . 1 . . . 1 . . . 1 . . . . . . . . Known Exits Taken 10 | . . . . . 1 . 1 . 1 . 1 . 1 . 1 . . . 1 . 1 . 1 . 1 . . Unknown Exits Taken 5 | 1 1 1 1 1 . . . . . . . . . . . . . . . . . . . . . . . Scrap Searched 5 | . . 2 . 3 . . . . . . . . . . . . . . . . . . . . . . . Spaces Dug 81 | . 21 14 . 21 1 3 1 . . . 3 . . . . . 3 . 5 9 . . . . . . . Terrain Destroyed 1160 | . 136 58 . 21 40 24 3 26 . 40 103 158 36 189 . 37 3 117 30 79 2 . 7 46 . 1 4 Melee 7 | . . . . . 1 . 1 . . . . . . . . . 3 . 2 . . . . . . . . Projectile 63 | . . . . . 1 1 2 1 . 1 15 5 1 1 . . . . 7 14 2 . 7 . . 1 4 AOE 1090 | . 136 58 . 21 38 23 . 25 . 39 88 153 35 188 . 37 . 117 21 65 . . . 46 . . . Terrain Rammed . | . . . . . . . . . . . . . . . . . . . . . . . . . . . . Walls Destroyed . | . . . . . . . . . . . . . . . . . . . . . . . . . . . . Machines Disabled . | . . . . . . . . . . . . . . . . . . . . . . . . . . . . Actions | -11 -10 -10 -10 -9 -8 -8 -8 -8 -7 -7 -7 -7 -6 -6 -6 -6 -5 -5 -5 -5 -5 -5 -4 -4 -3 -3 -2 --------- Run | Jun Mat Min Exi Min Mat Gar Mat Gar Fac Gar Fac Gar Fac Gar Fac Gar Fac Was Fac Gar Fac Gar Fac Gar Res DSF Res Total 16539 | 6 846 682 344 647 691 478 331 1003 341 721 1288 788 311 1015 83 1001 428 155 810 1186 484 967 496 326 500 254 357 Wait 1333 | 2 52 70 . 25 169 23 19 69 28 49 102 37 7 47 1 128 33 1 33 122 87 87 50 41 41 8 2 Move 13211 | . 695 585 343 611 414 351 236 824 304 604 1085 679 275 613 65 797 363 124 690 842 347 758 354 279 442 203 328 Hop . | . . . . . . . . . . . . . . . . . . . . . . . . . . . . Pick Up 235 | . 14 5 1 8 19 2 7 10 1 8 17 8 4 55 3 14 6 4 8 19 6 7 1 . 3 1 4 Fast Attach 115 | . 3 . . . 4 2 6 9 1 5 4 1 1 7 2 . 1 1 9 14 5 3 3 . 8 13 13 Attach 159 | 2 2 2 . . 8 . 5 8 4 5 17 6 7 27 1 6 4 3 8 20 2 5 10 1 2 2 2 Detach 54 | 2 . . . . . . 1 4 1 1 8 . 2 10 . 1 . 2 3 9 1 3 2 . 2 1 1 Swap 105 | . 8 3 . 1 9 6 5 3 . . 2 2 . 5 2 4 5 1 12 20 1 10 6 . . . . Drop 216 | . 6 2 . . 13 4 19 17 1 13 17 7 3 43 4 9 4 2 15 17 9 3 1 . 2 3 2 Fire 916 | . 64 11 . 2 48 37 30 37 1 24 36 32 12 196 5 30 7 17 30 114 24 72 65 2 . 16 4 Melee 18 | . . . . . 4 . 1 2 . . . . . 6 . . 3 . 2 . . . . . . . . Ram 7 | . . . . . . . 1 . . . . . . . . . . . . . . . 3 3 . . . Kick 7 | . . . . . . . . . . . . . . . . . . . . . . . . . . 7 . Crush 12 | . 2 3 . . 3 . 1 . . . . . . . . . 1 . . 1 . . 1 . . . . Escape Stasis 99 | . . . . . . 4 . 20 . 12 . 16 . 6 . 12 . . . 8 2 18 . . . . 1 Rewire 52 | . . 1 . . . 49 . . . . . . . . . . 1 . . . . 1 . . . . . Trap . | . . . . . . . . . . . . . . . . . . . . . . . . . . . . Miscellaneous . | . . . . . . . . . . . . . . . . . . . . . . . . . . . . Route ------- -11/Junkyard -10/Materials (discovered 5 exits: [*Mat x3] / [*Min x2]) -10/Mines (discovered 3 exits: [*Mat x2] / *Exi) -10/Exiles -9/Mines (discovered 2 exits: *Mat x2) -8/Materials -8/Garrison (discovered 3 exits: *Mat x3) -8/Materials -8/Garrison (discovered 3 exits: *Fac x3) -7/Factory -7/Garrison (discovered 4 exits: *Fac x4) -7/Factory -7/Garrison (discovered 3 exits: *Fac x3) -6/Factory -6/Garrison -6/Factory -6/Garrison (discovered 3 exits: *Fac x3) -5/Factory (discovered 2 exits: Upp x2) -5/Waste -5/Factory (discovered 2 exits: *Fac / Gar) -5/Garrison (discovered 3 exits: *Fac x3) -5/Factory (discovered 2 exits: *Fac / Gar) -5/Garrison (discovered 3 exits: *Fac x3) -4/Factory (discovered 2 exits: Res / Gar) -4/Garrison -3/Research -3/DSF -2/Research History --------- Turn | Location | Event 7 | -11/Junkyard | Discovered new exit (range 0) 7 | -11/Junkyard | Entered Materials 308 | -10/Materials | Build established: Mutant 397 | -10/Materials | Discovered new exit (range 15) 571 | -10/Materials | Discovered new exit (range 16) 940 | -10/Materials | Discovered new exit (range 14) 974 | -10/Materials | Discovered new exit (range 15) 983 | -10/Materials | Central database locked down 1126 | -10/Materials | Discovered new exit (range 10) 1383 | -10/Materials | Entered Mines 1455 | -10/Mines | Discovered new exit (range 5) 1548 | -10/Mines | Deemed a non-threat by the Exiles lab entrance 1612 | -10/Mines | Discovered new exit (range 7) 1657 | -10/Mines | Found a damaged Exp. Sensor Array with a note attached 1660 | -10/Mines | Found Prototype Device 1891 | -10/Mines | Learned location of Zion (-7) 1954 | -10/Mines | Assisted by bots powering up and referring to "LRC-V3" 1999 | -10/Mines | Assembled infested the area 2118 | -10/Mines | Met 8R-AWN 2236 | -10/Mines | Core integrity fell below 50% 2531 | -10/Mines | Discovered new exit (range 5) 2544 | -10/Mines | Entered Exiles 2544 | -10/Exiles | Accompanied by 3 allies 2624 | -10/Exiles | Welcomed by 8R-AWN 2676 | -10/Exiles | Learned about 8R-AWN's background 2676 | -10/Exiles | Met EX-HEX 2804 | -10/Exiles | Met EX-DEC 3162 | -10/Exiles | Met EX-BIN 3197 | -10/Exiles | Aligned with FarCom system 3200 | -10/Exiles | Given EX-Vault access code 3284 | -10/Exiles | Opened EX-Vault 3312 | -10/Exiles | Found 0b10 Alert Chip 3409 | -10/Exiles | Warned to stay clear of 0b10 Research branches 3608 | -10/Exiles | Discovered new exit (range 14) 3643 | -10/Exiles | Left Exiles lab with 0b10 Alert Chip 3643 | -10/Exiles | Entered Mines 3643 | -9/Mines | Accompanied by 3 allies 3669 | -9/Mines | Met a Derelict bent on vengeance 4003 | -9/Mines | Discovered new exit (range 10) 4040 | -9/Mines | Met a Derelict testing a Signal Generator 4377 | -9/Mines | Discovered new exit (range 5) 5637 | -9/Mines | Entered Materials 5637 | -8/Materials | Accompanied by 1 ally 5637 | -8/Materials | Evolved 4 slots: Propulsion x2, Utility x2 5754 | -8/Materials | Repaired Lgt. Treads 6277 | -8/Materials | Build established: Scavenger-Mutant 7056 | -8/Materials | Identified exit to Garrison 7056 | -8/Materials | Entered Garrison 7402 | -8/Garrison | Spotted B-75 Beast 7402 | -8/Garrison | Spotted B-75 Beast 7495 | -8/Garrison | Triggered checkpoint 7537 | -8/Garrison | Triggered checkpoint 7578 | -8/Garrison | Triggered checkpoint 7734 | -8/Garrison | Discovered new exit (range 10) 7786 | -8/Garrison | Triggered checkpoint 7834 | -8/Garrison | Triggered checkpoint 7878 | -8/Garrison | Discovered new exit (range 76) 7878 | -8/Garrison | Discovered new exit (range 12) 7878 | -8/Garrison | Discovered new exit (range 100) 7918 | -8/Garrison | Installed Relay Interface Framework 8071 | -8/Garrison | Entered Materials 8071 | -8/Materials | Accompanied by 3 allies 8479 | -8/Materials | Identified Exp. Sensor Array 8711 | -8/Materials | Identified exit to Garrison 8711 | -8/Materials | Entered Garrison 8740 | -8/Garrison | Build established: Mutant 8808 | -8/Garrison | Triggered checkpoint 9084 | -8/Garrison | Triggered checkpoint 9147 | -8/Garrison | Spotted B-75 Beast 9192 | -8/Garrison | Destroyed B-75 Beast 9373 | -8/Garrison | Triggered checkpoint 9524 | -8/Garrison | Discovered new exit (range 11) 9539 | -8/Garrison | Expanded RIF knowledge: Watcher Feeds 9609 | -8/Garrison | Triggered checkpoint 9726 | -8/Garrison | Discovered new exit (range 10) 9863 | -8/Garrison | Triggered checkpoint 9950 | -8/Garrison | Triggered checkpoint 10010 | -8/Garrison | Discovered new exit (range 12) 10067 | -8/Garrison | Learned Factory security intel 10266 | -8/Garrison | Entered Factory 10266 | -7/Factory | Evolved 2 slots: Utility x2 10790 | -7/Factory | Identified exit to Garrison 10791 | -7/Factory | Entered Garrison 10842 | -7/Garrison | Triggered checkpoint 11107 | -7/Garrison | Triggered checkpoint 11136 | -7/Garrison | Destroyed 10 combat bots 11209 | -7/Garrison | Expanded RIF knowledge: Robot Detection 11290 | -7/Garrison | Discovered new exit (range 12) 11518 | -7/Garrison | Triggered checkpoint 11664 | -7/Garrison | Triggered checkpoint 11681 | -7/Garrison | Found embedded Infiltrators 11698 | -7/Garrison | Discovered new exit (range 37) 11698 | -7/Garrison | Discovered new exit (range 32) 11698 | -7/Garrison | Discovered new exit (range 57) 11698 | -7/Garrison | Discovered new exit (range 41) 11904 | -7/Garrison | Found Quantum Capacitor 12057 | -7/Garrison | Entered Factory 12057 | -7/Factory | Accompanied by 2 allies 12087 | -7/Factory | Identified exit to Garrison 12943 | -7/Factory | Fabricated Cargo Storage Unit (x1) 13250 | -7/Factory | Build established: Hauler-Mutant 14179 | -7/Factory | Identified exit to Garrison 14213 | -7/Factory | Entered Garrison 14301 | -7/Garrison | Triggered checkpoint 14441 | -7/Garrison | Triggered checkpoint 14505 | -7/Garrison | Build established: Bothacker-Mutant 14652 | -7/Garrison | Expanded RIF knowledge: Program Shield 14734 | -7/Garrison | Discovered new exit (range 10) 14858 | -7/Garrison | Triggered checkpoint 14904 | -7/Garrison | Destroyed 7 combat bots 14927 | -7/Garrison | Discovered new exit (range 10) 14994 | -7/Garrison | Found embedded Infiltrators 15000 | -7/Garrison | Triggered checkpoint 15105 | -7/Garrison | Triggered checkpoint 15231 | -7/Garrison | Discovered new exit (range 13) 15244 | -7/Garrison | Discovered new exit (range 13) 15244 | -7/Garrison | Discovered new exit (range 93) 15244 | -7/Garrison | Discovered new exit (range 58) 15491 | -7/Garrison | Garrison Relay disabled 15552 | -7/Garrison | Triggered checkpoint 15569 | -7/Garrison | P-60 Hacker assimilated allied LU-WU9(x) 15658 | -7/Garrison | Entered Factory 15658 | -6/Factory | Evolved 2 slots: Power x1, Utility x1 15783 | -6/Factory | Build established: Botlord-Mutant 16008 | -6/Factory | First assault squad dispatched 16060 | -6/Factory | Destroyed 7 combat bots 16234 | -6/Factory | Identified exit to Garrison 16234 | -6/Factory | Entered Garrison 16250 | -6/Garrison | Lost 4 parts (2n2u) 16293 | -6/Garrison | Triggered checkpoint 16297 | -6/Garrison | Spotted B-75 Beast 16370 | -6/Garrison | Destroyed B-75 Beast 16395 | -6/Garrison | Lost 7 parts (2p2n1u2w) 16517 | -6/Garrison | Expanded RIF knowledge: Zone Cloak 16613 | -6/Garrison | Garrison Relay disabled 16898 | -6/Garrison | Triggered checkpoint 16908 | -6/Garrison | Spotted B-75 Beast 17003 | -6/Garrison | Destroyed B-75 Beast 17321 | -6/Garrison | Discovered new exit (range 10) 17492 | -6/Garrison | Garrison Relay disabled 17501 | -6/Garrison | Triggered checkpoint 17858 | -6/Garrison | Triggered checkpoint 17868 | -6/Garrison | Garrison Relay disabled 19238 | -6/Garrison | Entered Factory 19238 | -6/Factory | Accompanied by 3 allies 19398 | -6/Factory | Identified exit to Garrison 19415 | -6/Factory | Entered Garrison 19415 | -6/Garrison | Accompanied by 5 allies 19528 | -6/Garrison | Triggered checkpoint 19704 | -6/Garrison | Triggered checkpoint 19712 | -6/Garrison | Triggered checkpoint 19799 | -6/Garrison | Expanded RIF knowledge: Autoassimilate 19844 | -6/Garrison | Triggered checkpoint 19963 | -6/Garrison | Discovered new exit (range 10) 20148 | -6/Garrison | Triggered checkpoint 20221 | -6/Garrison | Triggered checkpoint 20406 | -6/Garrison | Triggered checkpoint 20406 | -6/Garrison | Discovered new exit (range 10) 20616 | -6/Garrison | Triggered checkpoint 20616 | -6/Garrison | Garrison Relay disabled 20896 | -6/Garrison | Discovered new exit (range 8) 20924 | -6/Garrison | Found embedded Infiltrators 20954 | -6/Garrison | Triggered checkpoint 21088 | -6/Garrison | Garrison Relay disabled 21382 | -6/Garrison | Garrison Relay disabled 21548 | -6/Garrison | Entered Factory 21548 | -5/Factory | Accompanied by 5 allies 21548 | -5/Factory | Evolved 2 slots: Utility x2 21631 | -5/Factory | Garrison activated, responded to threat 21808 | -5/Factory | Identified exit to Upper Caves 22448 | -5/Factory | First assault squad dispatched 22492 | -5/Factory | Sucked down chute 22492 | -5/Factory | Entered Waste 22507 | -5/Waste | EMP discharged 22512 | -5/Waste | Spotted C-40 Crusher 22538 | -5/Waste | Spotted C-40 Crusher 22540 | -5/Waste | Destroyed C-40 Crusher 22545 | -5/Waste | Spotted C-40 Crusher 22551 | -5/Waste | Destroyed C-40 Crusher 22555 | -5/Waste | 3 allies followed down the chute 22557 | -5/Waste | Destroyed C-40 Crusher 22581 | -5/Waste | Found Damper Plating 22601 | -5/Waste | Spotted C-40 Crusher 22607 | -5/Waste | EMP discharged 22607 | -5/Waste | System corruption reached 10% 22607 | -5/Waste | Allies destroyed C-40 Crusher 22641 | -5/Waste | Spotted C-40 Crusher 22647 | -5/Waste | Allies destroyed C-40 Crusher 22676 | -5/Waste | Spotted C-40 Crusher 22683 | -5/Waste | Destroyed C-40 Crusher 22707 | -5/Waste | EMP discharged 22807 | -5/Waste | EMP discharged 22808 | -5/Waste | Discovered new exit (range 14) 22839 | -5/Waste | Entered Factory 22839 | -5/Factory | Accompanied by 2 allies 24045 | -5/Factory | Discovered new exit (range 13) 24637 | -5/Factory | Identified exit to Garrison 24637 | -5/Factory | Entered Garrison 24872 | -5/Garrison | Triggered checkpoint 24905 | -5/Garrison | Garrison Relay disabled 25128 | -5/Garrison | Triggered checkpoint 25429 | -5/Garrison | Triggered checkpoint 25441 | -5/Garrison | Triggered checkpoint 25848 | -5/Garrison | Discovered new exit (range 12) 25994 | -5/Garrison | Triggered checkpoint 26081 | -5/Garrison | Garrison Relay disabled 26180 | -5/Garrison | Triggered checkpoint 26239 | -5/Garrison | Discovered new exit (range 8) 26331 | -5/Garrison | Expanded RIF knowledge: Autooverride 26404 | -5/Garrison | Garrison Relay disabled 26410 | -5/Garrison | Triggered checkpoint 26510 | -5/Garrison | Triggered checkpoint 26787 | -5/Garrison | Discovered new exit (range 12) 26884 | -5/Garrison | Triggered checkpoint 27111 | -5/Garrison | Entered Factory 27111 | -5/Factory | Accompanied by 4 allies 27434 | -5/Factory | Discovered new exit (range 14) 27632 | -5/Factory | Identified exit to Garrison 27711 | -5/Factory | First assault squad dispatched 28072 | -5/Factory | Identified exit to Garrison 28091 | -5/Factory | Entered Garrison 28091 | -5/Garrison | Accompanied by 5 allies 28326 | -5/Garrison | Triggered checkpoint 28378 | -5/Garrison | Spotted B-90 Cyclops 28384 | -5/Garrison | Rewired B-86 Titan 28390 | -5/Garrison | Rewired B-75 Beast 28396 | -5/Garrison | Allies destroyed B-90 Cyclops 28484 | -5/Garrison | Garrison Relay disabled 28575 | -5/Garrison | System corruption reached 30% 28604 | -5/Garrison | Triggered checkpoint 28604 | -5/Garrison | Spotted B-75 Beast 28609 | -5/Garrison | Allies destroyed B-75 Beast 28622 | -5/Garrison | Triggered checkpoint 28646 | -5/Garrison | Triggered checkpoint 28650 | -5/Garrison | Triggered checkpoint 28791 | -5/Garrison | Discovered new exit (range 10) 29520 | -5/Garrison | Discovered new exit (range 12) 29627 | -5/Garrison | Garrison Relay disabled 29948 | -5/Garrison | Destroyed Titan 6a 30002 | -5/Garrison | Discovered new exit (range 10) 30032 | -5/Garrison | Expanded RIF knowledge: Autoassimilate 30188 | -5/Garrison | Entered Factory 30188 | -4/Factory | Accompanied by 15 allies 30188 | -4/Factory | Evolved 2 slots: Propulsion x2 30438 | -4/Factory | First assault squad dispatched 30556 | -4/Factory | Discovered new exit (range 163) 30740 | -4/Factory | System corruption reached 10% 30832 | -4/Factory | Released all parts (11) 30845 | -4/Factory | Destroyed 9 combat bots 30859 | -4/Factory | High security lockdown imminent 30863 | -4/Factory | Lost 18 parts (2n14u2w) 30875 | -4/Factory | Identified exit to Garrison 30875 | -4/Factory | Entered Garrison 30882 | -4/Garrison | Learned Research security intel 31030 | -4/Garrison | Spotted B-86 Titan 31086 | -4/Garrison | Build established: Mutant 31104 | -4/Garrison | Discovered new exit (range 13) 31108 | -4/Garrison | Triggered checkpoint 31111 | -4/Garrison | Local machine network offline 31127 | -4/Garrison | Core integrity fell below 50% 31131 | -4/Garrison | Expanded RIF knowledge: Hotswap 31146 | -4/Garrison | Entered Research 31146 | -3/Research | Evolved 2 slots: Utility x2 31182 | -3/Research | Found Prototype Hackware 31182 | -3/Research | Identified Exp. Hacking Suite 31345 | -3/Research | Found Unknown Device 31345 | -3/Research | Identified Quantum Capacitor 31396 | -3/Research | First assault squad dispatched 31450 | -3/Research | Identified exit to DSF 31450 | -3/Research | Entered DSF 31472 | -3/DSF | Additional patrols routed to DSF 31680 | -3/DSF | Lost 4 parts (1p1n2u) 31693 | -3/DSF | Discovered new exit (range 14) 31720 | -3/DSF | Entered Research 31720 | -2/Research | Evolved 2 slots: Weapon x2 31729 | -2/Research | Lost 3 parts (1p2w) 31970 | -2/Research | First assault squad dispatched 32070 | -2/Research | Spotted B-90 Cyclops 32110 | -2/Research | Released all parts (15) 32140 | -2/Research | Lost 5 parts (1p3n1u) 32141 | -2/Research | Self-destructed Last Messages --------------- 32108_ Centrium Leg destroyed. 32109_ Reaction Control System destroyed. 32110_ Released Railgun. 32110_ Released Prc. Phase Gun. 32110_ Released Lgt. Particle Reactor. 32110_ Released Railgun. 32110_ Released Centrium Leg. 32110_ Released Core Analyzer. 32110_ Released ECM Suite. 32110_ Released Imp. Targeting Computer. 32110_ Released Centrium Leg. 32110_ Released Imp. Hardlight Generator. 32110_ Released Com. Battery. 32110_ Released Hcp. Storage Unit. 32110_ Released Adv. Heat Sink. 32110_ Released Med. Treads. 32110_ Released System Shield. 32120_ ALERT: Rogue bot located, Programmers report to Research Zone 9X. 32130_ Acquired Unknown Device. 32130_ Identified Imp. Force Field. Map ----- +----------------------------------------------------+ | ????????????????#######+################# | | ????????????????# #????# #?????# | | ????????????????# ###### ####### | | ????????????????# """"" # !! | | ????????????????# """"" # [ !^! | | ????????????????# """"" # | | ????????????????# # " | | ????????????????# # " #######/ | | ????????????????# # "" #??# | | ????????????????########### #### | | ??????????????????????????# = # "" | | ??????????????????????????# !!!= % # "" | | ??????????????????????????# !![=| = / "" | | ??????????????????????????# =[[*! # | | ??????????????????????????# #"###########"# | | ??????????????????????????# # #????# | | ??????????????????????????# # #????# | | ??????????????????????????# + "" #????##### | | ??????????????????????????# # """ #????????? | | ????????????????########### # R" #????????? | | ????????????????# ] # g # """ #????????? | | ????????????????# #gm # #????????? | | ????????????????# """ # # #????????? | | ????????????????# """" #g # #????????? | | ????????????????# """" g #####+####????????? | | ????????????????# """ @# #???# #???????????? | | ????????????????# # ##### #???????????? | | ????????????????# # #???????????? | | ????????????????#Y##########+#######+##??????????? | | ???????????????????# #??????????? | | ???????????????????# #??????????? | | ???????????????????# % #??????????? | | ???????????????????# #??????????? | | ???????????????????# [ #??????????? | | ???????????????????# #??????????? | | ???????????????????# """"T"""" #??????????? | | ???????????????????# """"""""""" #??????????? | | ???????????????????####################??????????? | | ?????????????????????????????????????????????????? | | ?????????????????????????????????????????????????? | | ?????????????????????????????????????????????????? | | ?????????????????????????????????????????????????? | | ?????????????????????????????????????????????????? | | ?????????????????????????????????????????????????? | | ?????????????????????????????????????????????????? | | ?????????????????????????????????????????????????? | | ?????????????????????????????????????????????????? | | ?????????????????????????????????????????????????? | | ?????????????????????????????????????????????????? | | ?????????????????????????????????????????????????? | +----------------------------------------------------+ Best States ------------- Heat Dissipation 98 Energy Generation 45 Energy Capacity 1700 Matter Stores 300 Matter Capacity 450 Sight Range 16 Robot Scan Range 20 Terrain Scan Density 10 ECM Strength 1 Jamming Range 14 Additional Mass Support 12 EM Shielding 2 Armor Coverage 1200 Propulsion Shielding 66 Phase Shifting 5 Evasion (%) 59 Targeting Accuracy 6 Core Analysis 6 Recoil Reduction 6 Particle Charging 20 Offensive Hacking 16 Defensive Hacking 10 Relay Coupler Types 6 Relay Coupler Value 150 Authchip Count 1 Item Schematics ----------------- Cargo Storage Unit | -10/Materials | Hacked Imp. Remote Datajack | -7/Factory | Scanalyzed Hvy. Disruptor Cannon | -6/Factory | Scanalyzed Robot Schematics ------------------ None Fabricated ------------ Cargo Storage Unit | x1 | -7/Factory Alien Tech Used ----------------- None Achievements -------------- None Challenges ------------ None Game ------ Seed FocalBiocellInitializer Manual? 0 Play Time 03:15:25 Cumulative 302.5 hours Start 2023.04.15 @ 08:45:18 End 2023.04.16 @ 16:22:38 Sessions 15 Manual Loads 0 Difficulty Rogue Special Mode None Game No. 446 Rogue 423 Adventurer 4 Explorer 19 Win Type - Total 12 Types 10/0/0/2/0/0/0/0/0 Lore% 71 Gallery% 91 Achievement% 74 Wizard Run 0 Options --------- ASCII 0 Keyboard 1 Movement Numpad Keybinds 0 Fullscreen 1 Font 18/SmallcapsGlow Map View 76x50 Tactical HUD 1 Map Filters NONE Filters NONE Steam 1 RUN: d25b3dda-3eac-4c3a-be6b-9bc1eef57ac6